Cogmind - Beta 17 @@@ ROGUE MODE // 2026.07.23 @ 15:04:15 Player: Akl Result: Destroyed by S-27 Virus with Autogun Performance ------------- Evolutions (4) 2000 Regions Visited (8) 1600 Robots Destroyed (37) 185 Value Destroyed (1044) 1044 Prototype IDs (3) 60 Alien Tech Used (0) 0 Bonus (0) 0 TOTAL SCORE: 4889 Bonus ------- None Cogmind --------- Core Integrity 0/850 Matter 217/300 Energy 160/160 System Corruption 0% Temperature Cool (0) Movement Flying (120) Ox1 Location -6/Factory Parts ------- > --- POWER (2) -------- Light Nuclear Core > --- PROPULSION (5) --- Nuclear Pulse Thruster > --- UTILITY (6) ------ Visual Processing Unit Enhanced Optical Array Signal Interpreter Transport Network Coupler Hacking Suite > --- WEAPON (2) ------- Blade Saw Power Sword > --- INVENTORY (5) ---- Advanced Sensor Array Armor Integrity Analyzer Light Armor Plating Plasma Cutter Peak State ------------ > --- POWER ------------ Light Nuclear Core Fusion Compressor > --- PROPULSION ------- Surge Thruster Surge Thruster Nuclear Pulse Thruster > --- UTILITY ---------- Visual Processing Unit Enhanced Optical Array Signal Interpreter Transport Network Coupler Hacking Suite > --- WEAPON ----------- Blade Saw Power Sword > --- INVENTORY -------- Advanced Sensor Array Armor Integrity Analyzer Light Armor Plating Plasma Cutter [Rating: 40] Favorites ----------- Power Neutrino Core Engine Light Ion Engine Power Core Neutrino Core Propulsion Flight Unit Leg Aluminum Leg Wheel Compact Wheel Flight Unit Flight Unit Utility Signal Interpreter Device Seismic Detector Processor Signal Interpreter Hackware Hacking Suite Protection Propulsion Shielding Weapon Ripper Energy Gun Medium Laser Ballistic Gun Enhanced Autogun Ballistic Cannon Gauss Cannon Launcher Grenade Launcher Special Weapon Plasma Cutter Slashing Weapon Ripper Build | -11 -10 -9 -9 -8 -7 -7 -7 -6 ------- Run | Yrd Mat Mat Min Mat Fac Low Low Fac Slots Evolved 8 | . . 2 . 2 2 . . 2 Power 1 | . . . . . . . . 1 Propulsion 3 | . . 1 . 1 1 . . . Utility 4 | . . 1 . 1 1 . . 1 Weapon . | . . . . . . . . . Parts Attached 54 | 4 6 2 2 9 1 11 1 18 Power 8 | . 1 . . 2 . 2 . 3 Engine 3 | . 1 . . 2 . . . . Core 5 | . . . . . . 2 . 3 Reactor . | . . . . . . . . . Propulsion 20 | 2 2 1 . 4 . 4 . 7 Treads . | . . . . . . . . . Leg 3 | 2 . . . . . . . 1 Wheel 1 | . . . . . . 1 . . Hover . | . . . . . . . . . Flight 16 | . 2 1 . 4 . 3 . 6 Utility 11 | . 2 1 . 1 1 2 1 3 Device 4 | . 1 . . . . 2 . 1 Storage . | . . . . . . . . . Processor 5 | . 1 1 . . 1 . 1 1 Hackware 1 | . . . . . . . . 1 Protection 1 | . . . . 1 . . . . Artifact . | . . . . . . . . . Weapon 15 | 2 1 . 2 2 . 3 . 5 Energy Gun 2 | 2 . . . . . . . . Energy Cannon . | . . . . . . . . . Ballistic Gun 6 | . . . 2 2 . 1 . 1 Ballistic Cannon 1 | . . . . . . 1 . . Launcher 2 | . 1 . . . . . . 1 Special Weapon 1 | . . . . . . . . 1 Impact Weapon . | . . . . . . . . . Slashing Weapon 3 | . . . . . . 1 . 2 Piercing Weapon . | . . . . . . . . . Special Melee Weapon . | . . . . . . . . . Unidentified Prototypes 1 | . . . . 1 . . . . Corrupted Parts 2 | . . . . . . 2 . . System Corruption 2 | . . . . . . 2 . . Parts Lost 29 | . . . . . . 11 . 18 Power 4 | . . . . . . 1 . 3 Propulsion 15 | . . . . . . 5 . 10 Utility 4 | . . . . . . 2 . 2 Weapon 6 | . . . . . . 3 . 3 Highest Loss Streak 15 | . . . . . . 5 . 15 To Critical Strikes . | . . . . . . . . . Average Backups 4 | 1 3 4 4 4 3 5 4 2 Power . | 1 1 1 1 . . . . . Propulsion . | . 1 1 . . . . . . Utility 2 | . . . 2 2 2 4 3 1 Weapon . | . . 1 1 1 . . . . Tool/Special . | . . . . . . . . . Unused Backups 7 | . . . 1 2 . 1 . 3 Power . | . . . . . . . . . Propulsion . | . . . . . . . . . Utility 7 | . . . 1 2 . 1 . 3 Weapon . | . . . . . . . . . Tool/Special . | . . . . . . . . . Average Slot Usage (%) 76 | . 68 73 92 98 98 71 92 65 Engine 4 | . 4 11 11 9 7 1 . . Core 3 | . . . . . . 4 7 4 Leg 1 | . 20 . . . . . . . Wheel 2 | . . . . . . 3 7 2 Flight 18 | . 8 26 33 36 38 12 23 13 Device 6 | . 4 11 11 9 7 6 7 2 Processor 21 | . 3 14 22 18 21 23 30 26 Protection 3 | . . . . 7 7 5 . . Energy Gun 2 | . 28 . 4 2 . . . . Ballistic Gun 3 | . . . 3 13 7 3 7 2 Launcher 2 | . . 11 6 2 7 1 . . Slashing Weapon 3 | . . . . . . 5 7 4 Peak Build Rating 40 | 4 7 9 10 20 23 27 27 40 Average Rating 17 | 2 4 7 9 16 22 21 27 24 On Entrance 13 | . 4 6 9 10 19 23 24 27 Avg Prop Armor Cover (%) 7 | 24 23 . . 3 . 4 4 4 Naked Turns . | . . . . . . . . . Heaviest Build 20 | 3 7 7 7 13 13 20 11 15 Greatest Support 25 | 3 8 12 12 15 19 25 21 25 Greatest Overweight (x) 6 | . 1 . . . . 6 . 2 Average Overweight (x) . | . . . . . . . . . Largest Inventory Capacity 5 | 5 5 5 5 5 5 5 5 5 Average Capacity 5 | 5 5 5 5 5 5 5 5 5 Most Carried 5 | 5 5 5 5 5 5 5 4 4 Average Carried 4 | 2 3 4 4 4 3 4 4 2 Final Capacity 5 | 5 5 5 5 5 5 5 5 5 Final Carried 5 | 2 5 4 5 5 5 5 4 4 Class Distribution -------------------- 47% | Mutant 23% | Sprinter 14% | Scavenger-Sprinter 14% | Scavenger-Mutant Dominant Class ---------------- Mutant | -10/Materials Sprinter | -9/Materials Sprinter | -9/Mines Sprinter | -8/Materials Scavenger-Sprinter | -7/Factory Mutant | -7/Lower Caves Scavenger-Mutant | -7/Lower Caves Mutant | -6/Factory Resources | -11 -10 -9 -9 -8 -7 -7 -7 -6 ----------- Run | Yrd Mat Mat Min Mat Fac Low Low Fac Matter Collected 1126 | 240 . . 206 139 . 481 . 60 Remotely . | . . . . . . . . . Salvage Created 984 | 79 60 . 89 191 . 496 . 69 Parts 62 | 2 5 . 8 21 . 16 . 10 Haulers Intercepted . | . . . . . . . . . Recyclers Shooed 1 | . . . . . . . . 1 Parts Field Recycled . | . . . . . . . . . Retrieved Matter . | . . . . . . . . . Parts Self-Destructed 11 | . . . . . . 11 . . Prevented 1 | . . . . . . 1 . . Parts Restored . | . . . . . . . . . Kills | -11 -10 -9 -9 -8 -7 -7 -7 -6 ------- Run | Yrd Mat Mat Min Mat Fac Low Low Fac Combat Hostiles Destroyed 34 | . 5 . 7 8 . 10 . 4 Melee 1 | . . . . . . 1 . . Guns 12 | . 3 . 1 1 . 5 . 2 Cannons 3 | . . . . . . 2 . 1 AOE 18 | . 2 . 6 7 . 2 . 1 Classes Destroyed 11 | 2 1 . 1 2 . 4 . 1 Tunneler 1 | 1 . . . . . . . . Recycler 1 | 1 . . . . . . . . Watcher 1 | . . . . 1 . . . . Swarmer 18 | . 5 . 4 4 . 2 . 3 Cutter 1 | . . . . . . . . 1 Grunt 10 | . . . 3 3 . 4 . . Brawler 1 | . . . . . . 1 . . Duelist 1 | . . . . . . 1 . . Sentry 2 | . . . . 1 . 1 . . Programmer 1 | . . . . . . 1 . . Decomposer 1 | . . . . . . 1 . . Packrat 2 | . . . . . . 2 . . Best Kill Streak 5 | 2 3 . 4 5 . 3 . 2 Combat Bots Only 4 | . 3 . 4 4 . 3 . 2 Max Kills in Single Turn 4 | 1 2 . 2 4 . 2 . 1 Gunslinging . | . . . . . . . . . Exploded 4 | . 2 . 2 4 . 2 . 1 Melee 1 | . . . . . . 1 . . Uniques/NPCs Destroyed . | . . . . . . . . . Combat | -11 -10 -9 -9 -8 -7 -7 -7 -6 -------- Run | Yrd Mat Mat Min Mat Fac Low Low Fac Hostile Shots Fired 294 | . 24 . 14 16 9 69 1 161 Missed 108 | . 6 . 4 7 8 27 . 56 Hits 186 | . 18 . 10 9 1 42 1 105 Melee 4 | . . . . . . 2 . 2 Projectile 182 | . 18 . 10 9 1 40 1 103 Critical Strikes 7 | . . . . . . 2 1 4 Actively Blocked 1 | . . . . . . 1 . . Damage Taken 3070 | . 147 . 100 114 5 835 13 1856 Core 1251 | . 64 . 35 67 . 235 . 850 Absorbed by Shields . | . . . . . . . . . Redirected to Shielding 53 | . . . . 1 1 51 . . Core Remaining (%) 83 | 100 74 . 91 87 . . 66 . Volleys Fired 84 | 5 8 . 11 10 . 40 . 10 Largest 2 | 2 2 . 1 2 . 2 . 1 Hottest 90 | 90 90 . 50 70 . 65 . 43 Shots Fired 116 | 10 15 . 11 12 . 58 . 10 Gun 77 | 10 14 . 6 4 . 36 . 7 Cannon 15 | . . . . . . 15 . . Launcher 22 | . 1 . 5 8 . 7 . 1 Special 2 | . . . . . . . . 2 Kinetic 61 | . . . . 3 . 51 . 7 Thermal 33 | 10 14 . 6 1 . . . 2 Explosive 22 | . 1 . 5 8 . 7 . 1 Electromagnetic . | . . . . . . . . . Robot Hit Streak 9 | 4 2 . 1 4 . 9 . 3 Robot Miss Streak 4 | 1 3 . 3 3 . 2 . 4 Penetration Max . | . . . . . . . . . Secondary Targets 1 | . 1 . . . . . . . Max Gunslinging Chain 1 | . 1 . . . . . . . Shots Hit Robots 74 | 7 8 . 2 6 . 44 . 7 Core Hits 59 | 3 5 . 11 13 . 23 . 4 Critical Kills . | . . . . . . . . . Critical Parts Destroyed . | . . . . . . . . . Critical Strikes 3 | . . . . . . 1 . 2 Sever 3 | . . . . . . 1 . 2 Melee Attacks 15 | . . . . . . 11 . 4 Impact . | . . . . . . . . . Slashing 15 | . . . . . . 11 . 4 Piercing . | . . . . . . . . . Sneak Attacks 3 | . . . . . . 3 . . Combat Hostiles . | . . . . . . . . . Follow-up Attacks . | . . . . . . . . . Damage Inflicted 2786 | 80 184 . 461 435 . 1318 . 308 Guns 726 | 80 85 . 24 41 . 392 . 104 Cannons 254 | . . . . . . 254 . . Explosions 1325 | . 99 . 437 394 . 317 . 78 Melee 443 | . . . . . . 355 . 88 Ramming 16 | . . . . . . . . 16 Kinetic 779 | . . . . 29 . 646 . 104 Thermal 223 | 80 85 . 24 12 . . . 22 Explosive 1325 | . 99 . 437 394 . 317 . 78 Electromagnetic . | . . . . . . . . . Impact . | . . . . . . . . . Slashing 443 | . . . . . . 355 . 88 Piercing . | . . . . . . . . . Highest Corruption 2 | . . 1 1 . . 2 2 . Average Corruption 1 | . . 1 1 . . 1 2 . Corruption Purged . | . . . . . . . . . Corruption Blocked . | . . . . . . . . . Effects 6 | . . . 2 . . 2 2 . Message Errors 2 | . . . . . . 1 1 . Heat Flow Errors 1 | . . . 1 . . . . . Energy Discharges 2 | . . . . . . 1 1 . Data Loss (major) 1 | . . . 1 . . . . . Overload Shots . | . . . . . . . . . Overflow Damage 98 | . . . 10 21 . 67 . . Projectiles . | . . . . . . . . . Explosions 32 | . . . 10 21 . 1 . . Melee 66 | . . . . . . 66 . . Knockbacks 2 | . . . . . . 2 . . Impact . | . . . . . . . . . Kinetic 2 | . . . . . . 2 . . Secondary . | . . . . . . . . . Self-Inflicted Damage 60 | . . . . . . 54 . 6 Shots 2 | . . . . . . 2 . . Rammed 5 | . . . . . . . . 5 Targets Rammed 5 | . . . . . . . . 5 Kicked . | . . . . . . . . . Crushed . | . . . . . . . . . Highest Temperature 241 | 100 130 . 241 33 . 80 12 37 Average Temperature 43 | 60 74 . 63 10 . 23 12 21 Received Heat Transfer 828 | . 6 . 27 45 . 207 27 516 Siege Activations . | . . . . . . . . . Martial Activations . | . . . . . . . . . Shielding Activations . | . . . . . . . . . Robots Disrupted . | . . . . . . . . . Combat Hostiles . | . . . . . . . . . Robots Corrupted . | . . . . . . . . . Combat Hostiles . | . . . . . . . . . Parts Fried . | . . . . . . . . . Impact Corruptions . | . . . . . . . . . Robots Melted . | . . . . . . . . . Combat Hostiles . | . . . . . . . . . Parts Melted 3 | . 1 . . 2 . . . . Heat Transferred 607 | 223 199 . 74 37 . . . 74 Parts Sabotaged . | . . . . . . . . . Parts Stolen . | . . . . . . . . . Parts Stripped . | . . . . . . . . . Power Chain Reactions . | . . . . . . . . . Alert | -11 -10 -9 -9 -8 -7 -7 -7 -6 ------- Run | Yrd Mat Mat Min Mat Fac Low Low Fac Maximum Alert Level 1 | . . . . 1 . . . 1 Low Security (%) 90 | 100 100 100 100 86 100 . . 71 Level 1 9 | . . . . 13 . . . 28 Level 2 . | . . . . . . . . . Level 3 . | . . . . . . . . . Level 4 . | . . . . . . . . . Level 5 . | . . . . . . . . . High Security . | . . . . . . . . . Max Security . | . . . . . . . . . Peak Influence 320 | 10 95 44 196 242 114 . . 320 Initial 109 | . . 39 9 60 109 . . 9 Average 83 | 2 48 35 97 117 87 . . 91 Influence Increases 1624 | 10 149 17 277 292 24 375 . 480 Destroy 0b10 Robot/C 760 | . 100 . 220 160 . 200 . 80 Destroy 0b10 Robot/NC 15 | 10 . . . 5 . . . . Destroy Leader 132 | . 20 . 30 32 . 40 . 10 Allied During Kill 4 | . . . . 4 . . . . Successful Hack 15 | . 4 2 . . 9 . . . Disable Machine 15 | . . . . 15 . . . . Destroy Structure 83 | . 10 . 27 31 . . . 15 Partial Spotted 60 | . 15 15 . 15 15 . . . Lose Combat Pursuer 540 | . . . . 30 . 135 . 375 Influence Decreases 1324 | 10 54 86 147 206 257 339 29 196 Entered New Map 322 | . . 56 17 96 133 4 9 7 Time Decay 641 | 10 54 30 130 70 20 228 20 79 Lost Part 217 | . . . . . . 107 . 110 Lost Ally 40 | . . . . 40 . . . . Purge Threat 104 | . . . . . 104 . . . Squads Dispatched 8 | . . 1 . . 1 . . 6 Investigation 5 | . . 1 . . 1 . . 3 Extermination 1 | . . . . . . . . 1 Reinforcement 2 | . . . . . . . . 2 Assault . | . . . . . . . . . Garrison . | . . . . . . . . . Intercept . | . . . . . . . . . Searches Triggered . | . . . . . . . . . Construction Impeded . | . . . . . . . . . Haulers Reinforced . | . . . . . . . . . Active Scanning Responses . | . . . . . . . . . Cargo Convoy Interrupts . | . . . . . . . . . Stealth | -11 -10 -9 -9 -8 -7 -7 -7 -6 --------- Run | Yrd Mat Mat Min Mat Fac Low Low Fac Distress Signals 1 | . . . . . . . . 1 Communications Jammed . | . . . . . . . . . Distress Signals . | . . . . . . . . . Times Spotted 89 | . 10 . 6 19 1 19 2 32 Peak Tracking Total 13 | . 6 . 4 13 1 8 5 13 Tactical Retreats 11 | . . . . 1 . 6 . 4 Traps | -11 -10 -9 -9 -8 -7 -7 -7 -6 ------- Run | Yrd Mat Mat Min Mat Fac Low Low Fac Traps Triggered 1 | . . . . . . . . 1 Indirectly . | . . . . . . . . . Trap Hack Attempts . | . . . . . . . . . Triggered . | . . . . . . . . . Disarmed . | . . . . . . . . . Reprogrammed . | . . . . . . . . . Reused . | . . . . . . . . . Traps Extracted . | . . . . . . . . . Installed . | . . . . . . . . . Triggered . | . . . . . . . . . Machines | -11 -10 -9 -9 -8 -7 -7 -7 -6 ---------- Run | Yrd Mat Mat Min Mat Fac Low Low Fac Machines Disabled 1 | . . . . 1 . . . . Max in Single Turn 1 | . . . . 1 . . . . Machines Repaired . | . . . . . . . . . Machines Dismantled . | . . . . . . . . . Machines Sabotaged . | . . . . . . . . . Overloaded Fab Kills . | . . . . . . . . . Hacking | -11 -10 -9 -9 -8 -7 -7 -7 -6 --------- Run | Yrd Mat Mat Min Mat Fac Low Low Fac Machines Accessed 11 | . 2 1 . 1 2 . . 5 Terminals 6 | . 2 . . 1 1 . . 2 Fabricators 1 | . . . . . . . . 1 Repair Stations 1 | . . . . . . . . 1 Recycling Units 1 | . . . . . . . . 1 Scanalyzers 2 | . . 1 . . 1 . . . Garrison Access . | . . . . . . . . . Total Hacks 32 | . 3 7 . 2 8 . . 12 Successful 21 | . 2 5 . 2 8 . . 4 Failed 11 | . 1 2 . . . . . 8 Catastrophic . | . . . . . . . . . Database Lockouts . | . . . . . . . . . Manual . | . . . . . . . . . Terminals 15 | . 3 . . 2 5 . . 5 Fabricators 3 | . . . . . . . . 3 Repair Stations 1 | . . . . . . . . 1 Recycling Units 3 | . . . . . . . . 3 Scanalyzers 10 | . . 7 . . 3 . . . Garrison Access . | . . . . . . . . . Terminal Hacks 10 | . 2 . . 2 5 . . 1 Record 3 | . . . . 1 2 . . . Part Schematic 1 | . . . . . 1 . . . Prototype ID Bank 1 | . . . . . 1 . . . Emergency Access Points 2 | . 1 . . 1 . . . . Unreport Threat 1 | . . . . . 1 . . . Locate Traps 1 | . 1 . . . . . . . Zone Layout 1 | . . . . . . . . 1 Fabricator Hacks 2 | . . . . . . . . 2 Load Schematic 1 | . . . . . . . . 1 Build 1 | . . . . . . . . 1 Repair Station Hacks . | . . . . . . . . . Recycling Unit Hacks 1 | . . . . . . . . 1 Retrieve Components 1 | . . . . . . . . 1 Scanalyzer 8 | . . 5 . . 3 . . . Insert Component 5 | . . 3 . . 2 . . . Analyze 3 | . . 2 . . 1 . . . Garrison Access Hacks . | . . . . . . . . . Unauthorized Hacks . | . . . . . . . . . Terminals . | . . . . . . . . . Fabricators . | . . . . . . . . . Repair Stations . | . . . . . . . . . Recycling Units . | . . . . . . . . . Scanalyzers . | . . . . . . . . . Garrison Access . | . . . . . . . . . Data Cores Recovered . | . . . . . . . . . Used . | . . . . . . . . . Hacking Detections 10 | . 1 1 . 1 2 . . 5 Full Trace Events 5 | . . 1 . . 1 . . 3 Feedback Events 1 | . . 1 . . . . . . Corruption 1 | . . 1 . . . . . . Feedback Blocked . | . . . . . . . . . Robot Schematics Acquired . | . . . . . . . . . Robots Built . | . . . . . . . . . Authchips . | . . . . . . . . . Time . | . . . . . . . . . Total Robot Build Rating . | . . . . . . . . . Part Schematics Acquired 4 | . . 2 . . 2 . . . Parts Built 2 | . . . . . . . . 2 Authchips . | . . . . . . . . . Time 31 | . . . . . . . . 31 Total Part Build Rating 4 | . . . . . . . . 4 Part Studies Acquired . | . . . . . . . . . Parts Repaired . | . . . . . . . . . Time . | . . . . . . . . . Parts Recycled . | . . . . . . . . . Recycled Matter . | . . . . . . . . . Retrieved Matter . | . . . . . . . . . Retrieved Components . | . . . . . . . . . Parts Scanalyzed 3 | . . 2 . . 1 . . . Part Schematics Acquired 3 | . . 2 . . 1 . . . Parts Damaged . | . . . . . . . . . Bothacking | -11 -10 -9 -9 -8 -7 -7 -7 -6 ------------ Run | Yrd Mat Mat Min Mat Fac Low Low Fac Used RIF Installer . | . . . . . . . . . Robots Hacked . | . . . . . . . . . Non-combat . | . . . . . . . . . Combat . | . . . . . . . . . Robot Hacks Applied . | . . . . . . . . . Relay Couplers Released . | . . . . . . . . . Fabnet Peak Effective % . | . . . . . . . . . Robots Rewired . | . . . . . . . . . Allies Hacked . | . . . . . . . . . Hacks Repelled . | . . . . . . . . . Allies | -11 -10 -9 -9 -8 -7 -7 -7 -6 -------- Run | Yrd Mat Mat Min Mat Fac Low Low Fac Total Allies 2 | . . . 2 . . . . . Largest Group 2 | . . . 2 2 . . . . Highest-Rated Group 45 | . . . 45 45 . . . . Highest-Rated Ally 31 | . . . 31 31 . . . . Total Orders . | . . . . . . . . . Ally Attacks 18 | . . . 11 7 . . . . Total Damage 205 | . . . 145 60 . . . . Kills 4 | . . . 4 . . . . . Allies Corrupted . | . . . . . . . . . Allies Melted . | . . . . . . . . . Intel | -11 -10 -9 -9 -8 -7 -7 -7 -6 ------- Run | Yrd Mat Mat Min Mat Fac Low Low Fac Active Infowar (turns) 1811 | . 42 63 276 147 52 937 41 253 Optics 1282 | . . . . . 51 937 41 253 Seismic 816 | . 42 63 276 147 52 236 . . T.N.C. 1727 | . . 21 276 147 52 937 41 253 Robot Analysis Total . | . . . . . . . . . Derelict Logs Recovered 4 | . . . 2 . . 2 . . Drone Launches . | . . . . . . . . . Drone Recoveries . | . . . . . . . . . Exploration | -11 -10 -9 -9 -8 -7 -7 -7 -6 ------------- Run | Yrd Mat Mat Min Mat Fac Low Low Fac Turns Passed 1951 | 42 136 67 276 147 52 937 41 253 Spaces Moved 2867 | 35 200 156 439 331 177 1067 116 346 Core 296 | 35 125 . . . . 37 . 99 Treads . | . . . . . . . . . Legs . | . . . . . . . . . Wheels 266 | . . . . . . 266 . . Hover . | . . . . . . . . . Flight 2305 | . 75 156 439 331 177 764 116 247 Fastest Speed 26 | 50 37 32 32 28 26 26 34 26 Average Speed 47 | 50 45 33 32 29 26 68 34 44 Slowest Speed 350 | 50 100 37 32 32 26 350 34 205 Overloaded Moves 14 | . . . . . . 14 . . Propulsion Burnouts 1 | . . . . . . 1 . . Robots Hopped 8 | . . 1 1 6 . . . . Potential Cave-ins . | . . . . . . . . . Cave-ins Triggered . | . . . . . . . . . Exploration Rate (%) 35 | 3 38 16 88 42 5 97 16 11 Regions Visited 8 Branch Regions 3 Pre-discovered Areas 1 | . . . . . . 1 . . Known Exits Taken 7 | . 1 1 1 1 1 1 1 . Unknown Exits Taken 1 | 1 . . . . . . . . Scrap Searched 8 | . . . 1 . . 7 . . Spaces Dug . | . . . . . . . . . Terrain Destroyed 148 | . 10 . 35 45 . 42 . 16 Melee . | . . . . . . . . . Projectile 4 | . . . . . . 4 . . AOE 144 | . 10 . 35 45 . 38 . 16 Terrain Rammed . | . . . . . . . . . Walls Destroyed . | . . . . . . . . . Machines Disabled . | . . . . . . . . . Actions | -11 -10 -9 -9 -8 -7 -7 -7 -6 --------- Run | Yrd Mat Mat Min Mat Fac Low Low Fac Total 3297 | 49 228 170 561 366 182 1205 116 420 Wait 222 | . 7 2 106 1 . 73 . 33 Move 2846 | 34 199 153 436 321 176 1066 115 346 Hop 5 | . . 1 1 3 . . . . Pick Up 31 | 6 5 3 2 9 2 1 . 3 Fast Attach 29 | . 1 2 1 . . 11 . 14 Attach 20 | 4 3 3 . 2 3 . 1 4 Detach 5 | . 1 2 . . 1 . . 1 Swap 14 | . 3 . 2 9 . . . . Drop 21 | . 1 4 2 11 . 3 . . Fire 84 | 5 8 . 11 10 . 40 . 10 Melee 15 | . . . . . . 11 . 4 Ram 5 | . . . . . . . . 5 Kick . | . . . . . . . . . Crush . | . . . . . . . . . Escape Stasis . | . . . . . . . . . Rewire . | . . . . . . . . . Trap . | . . . . . . . . . Miscellaneous . | . . . . . . . . . Route ------- -11/Scrapyard -10/Materials -9/Materials -9/Mines -8/Materials (discovered 2 exits: *Fac x2) -7/Factory -7/Lower Caves -7/Lower Caves -6/Factory History --------- Turn | Location | Event 3 | -11/Scrapyard | Discovered new exit (range 15) 43 | -11/Scrapyard | Entered Materials 156 | -10/Materials | Discovered new exit (range 14) 160 | -10/Materials | Identified exit to Materials 179 | -10/Materials | Entered another Materials area 179 | -9/Materials | Evolved 2 slots: Propulsion x1, Utility x1 211 | -9/Materials | Discovered new exit (range 16) 243 | -9/Materials | Identified exit to Mines 246 | -9/Materials | Entered Mines 324 | -9/Mines | Met a Derelict bent on vengeance 378 | -9/Mines | Learned Materials garrison access intel 393 | -9/Mines | Learned 2 Materials zone layouts 468 | -9/Mines | Discovered new exit (range 7) 473 | -9/Mines | Identified exit to Materials 514 | -9/Mines | Build established: Sprinter 522 | -9/Mines | Entered Materials 522 | -8/Materials | Accompanied by 2 allies 522 | -8/Materials | Evolved 2 slots: Propulsion x1, Utility x1 523 | -8/Materials | Identified exit to Factory 524 | -8/Materials | Loaded intel: 1 garrison access location 528 | -8/Materials | Led the pair of lost Derelicts to an unsafe place 661 | -8/Materials | Discovered exit to Factory (range 16) 669 | -8/Materials | Entered Factory 669 | -7/Factory | Evolved 2 slots: Propulsion x1, Utility x1 703 | -7/Factory | Discovered new exit (range 15) 721 | -7/Factory | Identified exit to Lower Caves 721 | -7/Factory | Entered Lower Caves 885 | -7/Lower Caves | Attracted the attention of an 0b10 outpost 921 | -7/Lower Caves | Lost 3 parts (2n1w) 1004 | -7/Lower Caves | Lost 5 parts (1p1n1u2w) 1189 | -7/Lower Caves | Build established: Mutant 1203 | -7/Lower Caves | Learned location of Zion (-6) 1440 | -7/Lower Caves | Discovered new exit (range 6) 1514 | -7/Lower Caves | Identified exit to Lower Caves 1561 | -7/Lower Caves | Learned Factory interactive machine intel 1606 | -7/Lower Caves | Encountered a Warlord checkpoint 1658 | -7/Lower Caves | Entered another Lower Caves area 1668 | -7/Lower Caves | Discovered new exit (range 17) 1677 | -7/Lower Caves | Identified exit to Factory 1699 | -7/Lower Caves | Entered Factory 1699 | -6/Factory | Evolved 2 slots: Power x1, Utility x1 1700 | -6/Factory | Loaded intel: 56 interactive machine locations 1761 | -6/Factory | Fabricated VTOL Module (x2) 1832 | -6/Factory | Core integrity fell below 50% 1856 | -6/Factory | Core integrity fell below 20% 1859 | -6/Factory | Lost 15 parts (2p8n2u3w) 1952 | -6/Factory | Destroyed by S-27 Virus with Autogun Last Messages --------------- 6L. 01920_ Acquired Nuclear Pulse Thruster. 01922_ Acquired Armor Integrity Analyzer. 01924_ Acquired Adv. Sensor Array. 01927_ Triggered Ambush Trap. 01927_ B-48 Gladiator emerges from a hatch in the floor. 01927_ S-27 Virus emerges from a hatch in the floor. 01931_ Connecting with Terminal... 01931_ ALERT: Suspicious activity at Terminal F018. Dispatching Investigation squad. [Achievement: Party Time] 01934_ Acquired Unknown Slashing Weapon. 01934_ Identified Power Sword. 01942_ Surge Thruster destroyed. 01945_ Manufacturing Mainframe disabled. 01950_ S-27 Virus Autogun severed. 01952_ Surge Thruster destroyed. 01952_ Fusion Compressor destroyed. Map ----- +----------------------------------------------------+ | ??????????# # #????????????????????????? | | ??????????### ### ! #????????????????????????? | | ????????????# ###########????????????????????????? | | ?????######## ## #????????????????????????? | | ?????# ! / + ???????????????A?????????? | | ?????# # ## ?????????????????????????? | | ?????# / # #? ??????????????????????????? | | ?????# # #?? ??????????????????????????? | | ?????# # #?? ?????????+?????????????????? | | ?????# # ##? ???????? #?????????????????? | | ?????# # +?? ??????# #?????????????????? | | ?????# # #?? ?????## ##????????????????? | | ?????# # ####"#+##### #????????????????? | | ?????# # #????????????????? | | ?????# ! + #????????????????? | | ?????# !! # #????????????????? | | ?????# ######## #### #????????????????? | | ?????# #??????# ######+####???????????????? | | ?????########??????# ## #???????????????? | | ???????????????????# ## """" !#???????????????? | | ???????????????????# ## """" #???????????????? | | ???????????????????# ## """" #???????????????? | | ??????????????????## ##! """ H #???????????????? | | ???????????########k #s #???????????????? | | ???????????# "" # #???????????????? | | ???????????+ "Ts[/@ ! !#???????????????? | | ???????????# # * #???????????????? | | ???????????# #### #%#;######???????????????? | | ???????????# ????###+#######????????????????????? | | ???????????# ????????????????????????????????????? | | ???????????#?????????????????????????????????????? | | ?????????????????????????????????????????????????? | | ?????????????????????????????????????????????????? | | ?????????????????????????????????????????????????? | | ?????????????????????????????????????????????????? | | ?????????????????????????????????????????????????? | | ?????????????????????????????????????????????????? | | ?????????????????????????????????????????????????? | | ?????????????????????????????????????????????????? | | ?????????????????????????????????????????????????? | | ?????????????????????????????????????????????????? | | ?????????????????????????????????????????????????? | | ?????????????????????????????????????????????????? | | ?????????????????????????????????????????????????? | | ??????????????????????????""?????????????????????? | | ??????????????????????????""?????????????????????? | | ?????""T""????????????????F"?????????????????????? | | ?????"""""????????????????""?????????????????????? | | ?????????????????????????????????????????????????? | | ?????????????????????????????????????????????????? | +----------------------------------------------------+ Best States ------------- Heat Dissipation 37 Energy Generation 19 Energy Capacity 315 Matter Stores 300 Matter Capacity 300 Sight Range 22 Terrain Scan Density 10 Additional Mass Support 9 Propulsion Shielding 33 Evasion (%) 64 Targeting Accuracy 8 Recoil Reduction 4 Kinecelleration 30 Offensive Hacking 10 Item Schematics ----------------- VTOL Module | -9/Materials | Scanalyzed Lgt. Ion Engine | -9/Materials | Scanalyzed Enh. Autogun | -7/Factory | Scanalyzed Imp. Reaction Control System | -7/Factory | Hacked Robot Schematics ------------------ None Fabricated ------------ VTOL Module | x2 | -6/Factory Repaired ---------- Nothing Studied --------- None Alien Tech Used ----------------- None Achievements -------------- Just What I Needed Party Time Challenges ------------ None Game ------ Seed NovaHugeMesh Manual? 0 Play Time 00:38:04 Cumulative 31.0 hours Start 2026.07.23 @ 14:23:38 End 2026.07.23 @ 15:04:15 Sessions 1 Manual Loads 0 Difficulty Rogue Special Mode None Game No. 53 Rogue 53 Adventurer 0 Explorer 0 Win Type - Total 0 Types 0/0/0/0/0/0/0/0/0/0 Lore% 16 Gallery% 27 Achievement% 21 Wizard Run 0 Options --------- Layout 1 ASCII 0 Keyboard 0 Movement Numpad Keybinds 0 Fullscreen 1 Font 24/Smallcaps Map View 50x35 Zoom Use 0% Tactical HUD 1 Map Filters NONE Filters NONE Steam 1 RUN: ad6f3739-e7ab-409d-be34-7dc7d7f23b6d